bitfinex/quotes_ETHUSD_20241108
["timestamp","ask_amount","ask_price","bid_price","bid_amount"]
[1731078011237,0.8048,2913.4,2912.2,0.7906]
[1731078012166,0.08582146,2913.3,2912.2,0.7906]
[1731078012322,0.8048,2913.4,2912.3,0.06865963]
[1731078012517,0.7598,2913.2,2912.3,35.06865963]
[1731078012840,0.7598,2913.2,2912.3,35.0]
[1731078013045,0.7598,2913.2,2912.5,0.7797]
[1731078013217,0.085822,2914.0,2912.5,0.7797]
[1731078013218,0.7816,2913.9,2913.0,3.30484602]
[1731078013425,0.7572,2914.6,2913.3,4.06134602]
[1731078013621,0.08579033,2914.5,2913.6,3.30484602]
[1731078013971,0.7572,2915.1,2913.9,3.30484602]
[1731078014667,0.7572,2915.1,2914.2,3.30484602]
[1731078014821,0.7837,2915.7,2914.3,0.8279]
[1731078015013,0.0857607,2915.6,2914.4,3.52463068]
[1731078015217,0.0857607,2915.6,2914.5,3.30484602]
[1731078015417,0.0857607,2915.6,2914.4,3.45602212]
[1731078015645,0.7837,2915.7,2914.5,3.06860593]
[1731078015826,0.7837,2915.7,2914.6,0.7927]
[1731078016030,0.7837,2915.7,2914.7,0.7097546]
[1731078016458,0.8243,2916.2,2915.1,3.30484602]
[1731078016632,0.8243,2916.5,2915.5,0.7927]
[1731078017073,0.8243,2916.5,2915.5,3.7927]
[1731078017223,0.8043,2917.2,2916.0,3.30484602]
[1731078017561,0.08571735,2917.1,2916.0,35.0]
[1731078018059,0.08571735,2917.1,2916.1,0.8023]
[1731078018259,0.08571735,2917.1,2916.1,0.87087386]
[1731078018823,0.8043,2917.2,2916.1,4.93149574]
[1731078019157,0.8043,2918.0,2916.2,0.49314957]
[1731078019464,0.08570111,2917.9,2916.2,0.49314957]
[1731078019673,0.08570111,2917.9,2916.6,3.7874]
[1731078019836,0.8186,2918.1,2916.9,4.06062188]
[1731078020024,0.8186,2918.1,2916.6,3.7874]
[1731078020025,0.8186,2918.1,2916.6,0.7874]
[1731078020223,0.08568142,2918.0,2916.7,0.48480219]
[1731078020966,0.08568142,2918.0,2916.8,0.06855449]
[1731078021177,0.8186,2918.1,2916.9,4.06062188]
[1731078021681,0.08568222,2918.0,2916.7,0.48480219]
[1731078021977,0.08568222,2918.0,2916.8,0.06855446]
[1731078022133,0.08568222,2918.0,2916.8,0.43407566]
[1731078022466,0.8053,2917.8,2916.3,3.8009]
[1731078022760,0.63570468,2917.7,2916.3,0.8009]
[1731078023062,0.55,2917.3,2915.9,0.8251]
[1731078023275,0.0857168,2917.2,2915.9,0.8251]
[1731078023855,0.0857168,2917.2,2916.0,0.06857272]
[1731078024081,0.7597,2917.4,2916.3,4.06062188]
[1731078024393,0.08570562,2917.8,2916.7,4.06062188]
[1731078024394,0.7701,2917.8,2916.7,4.06062188]
[1731078024560,0.7701,2917.8,2916.5,0.7805]
[1731078024947,0.08569028,2917.7,2916.5,0.7805]
[1731078025385,0.08569028,2917.7,2916.6,0.0685548]
[1731078025689,0.7701,2917.8,2916.6,0.0685548]
[1731078025849,0.7701,2917.8,2916.7,0.49096767]
[1731078026048,0.7701,2917.8,2916.9,4.06062188]
[1731078026651,0.7824,2918.5,2917.0,0.8197]
[1731078026849,0.7824,2918.5,2917.0,3.8197]
[1731078026850,0.08567849,2918.4,2917.0,3.8197]
[1731078027055,0.08567849,2918.4,2917.3,4.06062188]
[1731078027248,0.08567849,2918.4,2917.4,0.06853879]
[1731078027663,0.7824,2918.5,2917.3,4.06062188]
[1731078028149,0.7824,2918.5,2917.4,35.06853194]
[1731078028354,0.7824,2918.5,2917.4,35.0]
[1731078028561,0.7824,2918.5,2917.1,0.78803219]
[1731078029642,0.7824,2918.5,2917.2,0.06853685]
[1731078029755,0.7824,2918.5,2917.3,4.06062188]
[1731078030102,0.7824,2918.5,2917.5,0.7635]
[1731078030283,0.7824,2918.5,2917.5,1.25276531]
[1731078030453,0.7824,2918.5,2917.7,4.06062188]
[1731078030916,0.7586,2919.4,2917.8,0.06852741]
[1731078031104,0.7586,2919.2,2917.7,4.06062188]
[1731078031404,0.7586,2919.0,2917.5,1.25276531]
[1731078031605,0.08565841,2918.9,2917.5,1.25276531]
[1731078032101,0.7839,2918.8,2917.5,1.25276531]
[1731078032259,0.08566336,2918.7,2917.5,1.25276531]
[1731078032602,0.08566336,2918.7,2917.1,0.78803219]
[1731078032603,0.7967,2918.4,2917.1,0.78803219]
[1731078032803,0.08567795,2918.3,2917.1,0.78803219]
[1731078033089,0.7967,2918.2,2917.1,0.78803219]
[1731078033296,0.7832,2918.0,2916.6,1.46421388]
[1731078033590,0.7832,2918.0,2916.9,4.06062188]
[1731078034155,0.7832,2918.0,2916.6,1.12261804]
[1731078034356,0.85048185,2917.9,2916.5,0.7597]
[1731078034743,0.85048185,2917.9,2916.7,4.06062188]
[1731078034954,0.85048185,2917.9,2916.8,0.4814712]
[1731078035241,0.7648,2917.9,2917.1,4.06062188]
[1731078035410,0.8212,2918.6,2917.2,3.89264071]
[1731078035601,0.8212,2918.6,2917.6,3.0]
[1731078035811,0.8212,2918.6,2917.9,4.06062188]
[1731078036037,0.08566709,2919.5,2918.0,3.06851995]
[1731078036038,0.8212,2918.9,2918.0,3.06851995]
[1731078036400,0.8212,2918.9,2918.0,3.0]
[1731078036805,0.8212,2918.9,2918.0,3.06851938]
[1731078037001,0.8212,2918.9,2918.1,0.71291413]
[1731078037235,0.8212,2918.9,2918.2,0.0685153]
[1731078037441,0.8212,2918.9,2918.1,0.71291413]
[1731078037442,0.7522,2919.7,2918.3,4.06062188]
[1731078037647,0.08563778,2919.6,2918.4,3.89031022]
[1731078037997,0.7522,2919.7,2918.8,4.06062188]
[1731078038244,0.7522,2919.7,2918.9,0.47456557]
[1731078038605,0.7522,2919.7,2918.9,3.47456557]
[1731078038903,0.7522,2919.7,2918.5,3.0]
[1731078039101,0.7624,2919.7,2918.1,1.48521413]
[1731078039301,0.7624,2919.7,2918.1,0.71291413]
[1731078039539,0.7869,2919.5,2917.8,0.7723]
[1731078039749,0.7869,2919.3,2917.5,3.8006]
[1731078039949,0.08565264,2919.2,2917.9,3.0]
[1731078040246,0.7869,2919.1,2917.9,3.0]
[1731078040605,0.7869,2919.1,2918.0,0.06851392]
[1731078040807,0.7869,2919.1,2918.1,0.30685139]
[1731078041241,0.7869,2919.1,2918.2,0.06851402]
[1731078041614,0.7869,2919.1,2917.8,3.01]
[1731078041615,0.7869,2919.1,2917.8,3.0]
[1731078041802,0.7869,2919.1,2917.9,0.61851867]
[1731078042139,0.7869,2919.1,2917.9,0.55]
[1731078042355,0.7869,2919.1,2918.0,0.356]
[1731078042851,0.7869,2919.1,2917.6,0.8091]
[1731078043006,0.7869,2919.1,2917.6,0.7991]
[1731078043206,0.7869,2919.1,2917.7,0.06852353]
[1731078043464,0.7869,2919.1,2917.9,3.0]
[1731078043603,0.7869,2919.1,2918.0,0.73441744]
[1731078044049,0.7869,2919.1,2917.8,0.01]
[1731078044261,0.7869,2919.1,2917.7,0.01]
[1731078044415,0.7869,2919.1,2917.9,3.0]
[1731078044608,0.7869,2919.1,2918.1,0.56]
[1731078044909,0.8107,2919.7,2918.0,0.8302]
[1731078045928,0.8107,2919.7,2918.0,1.39143505]
[1731078046306,0.8107,2919.7,2918.2,3.0]
[1731078046549,0.8107,2919.7,2918.3,0.79041744]
[1731078046849,0.8107,2919.7,2918.4,0.7933]
[1731078049146,0.8107,2919.7,2918.3,0.79041744]
[1731078049323,0.8147,2919.5,2918.4,0.06851417]
[1731078049513,0.8147,2919.5,2918.2,4.3441744]
[1731078049713,0.8147,2919.5,2918.3,3.0]
[1731078049963,0.8147,2919.5,2918.3,3.01]
[1731078050268,0.8147,2919.5,2918.3,3.0]
[1731078050569,0.08563657,2919.4,2918.4,0.3]
[1731078050718,0.1385877,2919.8,2917.7,0.7591]
[1731078050719,0.799,2919.3,2917.7,0.7591]
[1731078050911,0.799,2919.3,2917.8,0.68305374]
[1731078051317,0.1385877,2919.8,2917.7,0.7591]
[1731078051318,0.87154665,2919.2,2917.7,0.7591]
[1731078051945,0.87154665,2919.2,2917.8,0.06852166]
[1731078052114,0.7859,2919.2,2917.7,0.7591]
[1731078052820,0.63565206,2919.1,2917.5,0.55860786]
[1731078053160,0.8269,2919.0,2917.4,0.7621]
[1731078053314,0.8269,2918.9,2917.5,0.07852422]
[1731078053513,0.8269,2918.9,2917.8,4.3441744]
[1731078053714,0.8269,2918.9,2918.0,0.7798]
[1731078054160,0.8269,2918.9,2917.6,1.368499]
[1731078054941,0.8269,2918.9,2917.7,0.06852423]
[1731078055263,0.55,2918.8,2917.6,0.573899]
[1731078055549,0.7526,2918.5,2916.8,1.10656155]
[1731078055718,0.7526,2918.1,2916.8,1.10656155]
[1731078055920,0.7526,2917.9,2916.8,0.69364399]
[1731078056121,0.7526,2917.9,2916.9,0.0685477]
[1731078056444,0.7526,2917.9,2916.8,0.69364399]
[1731078056617,0.7526,2917.9,2916.9,0.06854115]
[1731078057052,0.7526,2917.9,2917.1,3.8102]
[1731078057285,0.7526,2917.9,2917.2,0.81543744]
[1731078057460,0.7526,2917.9,2916.8,0.69364399]
[1731078057614,0.7526,2917.9,2916.9,0.07854099]
[1731078057962,0.7526,2917.9,2917.0,0.505]
[1731078058318,0.7526,2917.9,2917.1,0.06854161]
[1731078058732,0.7526,2917.9,2917.0,0.505]
[1731078059160,0.7526,2917.9,2917.1,3.06854132]
[1731078059437,0.8035,2918.9,2917.5,3.0]
[1731078059638,0.8035,2918.9,2917.6,0.06852136]
[1731078059831,0.8035,2918.9,2918.0,0.8067]
[1731078060752,0.8035,2918.9,2917.7,0.8011]
[1731078060923,0.8035,2918.9,2917.8,0.61851852]
[1731078061160,0.8035,2918.9,2917.8,0.61851463]
[1731078061555,0.8035,2918.9,2917.8,0.55]
[1731078061885,0.8035,2918.9,2917.7,0.8011]
[1731078062060,0.8035,2918.9,2917.8,0.69260094]
[1731078062264,0.8035,2918.9,2917.9,0.06851934]
[1731078062468,0.8035,2918.9,2917.9,3.40928749]
[1731078062777,0.8035,2918.9,2918.0,0.34092875]
[1731078062977,0.8035,2918.9,2917.7,0.68938114]
[1731078063212,0.8035,2918.9,2917.2,1.56747157]
[1731078063488,0.90616357,2918.8,2917.3,0.76291297]
[1731078063706,0.90616357,2918.8,2917.2,0.79177157]
[1731078064256,0.7852,2918.6,2917.2,0.79177157]
[1731078064457,0.7852,2918.4,2917.0,0.505]
[1731078064684,0.90907828,2918.3,2917.1,0.06854263]
[1731078064993,0.90907828,2918.3,2917.0,0.505]
[1731078065350,0.8266,2918.1,2917.0,0.505]
[1731078065652,0.8266,2917.9,2917.0,0.505]
[1731078065853,0.8266,2917.7,2917.1,0.0685485]
[1731078066055,0.8266,2917.7,2917.0,0.505]
[1731078066896,0.8266,2917.7,2917.1,0.06854609]
[1731078067333,0.8266,2917.7,2917.0,0.505]
[1731078067596,0.55,2917.6,2917.0,0.505]
[1731078067780,0.84260149,2917.5,2917.0,0.505]
[1731078069695,0.7869,2917.3,2917.0,0.505]
[1731078070463,0.7821,2918.6,2917.1,0.8623498]
[1731078070707,0.7821,2918.4,2917.1,0.0685498]
[1731078070862,0.7671,2919.0,2917.1,0.0685498]
[1731078071061,0.7671,2918.8,2917.0,0.505]
[1731078071315,0.7671,2918.6,2917.1,0.06853485]
[1731078071508,0.7671,2918.6,2917.4,3.0]
[1731078071673,0.7671,2918.6,2917.6,0.55]
[1731078072008,0.7981,2919.5,2917.8,3.0]
[1731078072160,0.08564338,2919.4,2918.0,0.55]
[1731078072360,0.7981,2919.5,2918.1,0.82150828]
[1731078073013,0.7981,2919.5,2918.2,3.55]
[1731078073210,0.7981,2919.5,2918.4,0.55]
[1731078073781,0.7981,2919.5,2918.3,0.87203737]
[1731078073981,0.1385877,2919.8,2918.4,0.06851003]
[1731078073982,0.08563754,2919.4,2918.4,0.06851003]
[1731078074318,0.7638,2919.3,2917.7,0.8278]
[1731078074499,0.08565015,2919.2,2917.7,1.50164705]
[1731078074659,0.08565015,2919.2,2917.8,0.06852012]
[1731078074867,0.82,2919.1,2917.4,3.0]
[1731078075062,0.1485877,2919.8,2917.5,0.92552457]
[1731078075063,1.4556616,2919.0,2917.5,0.92552457]
[1731078075303,0.8294,2918.9,2917.5,0.92552457]
[1731078075517,0.0856616,2918.8,2917.5,0.92552457]
[1731078075813,0.8294,2918.9,2917.5,0.92552457]
[1731078076011,0.8294,2918.9,2917.6,0.40928749]
[1731078076313,0.8294,2918.9,2917.5,0.85699529]
[1731078076616,0.8294,2918.9,2917.6,0.45303627]
[1731078078222,0.08566368,2918.8,2917.7,0.06853095]
[1731078078369,0.8294,2918.9,2917.7,0.06853095]
[1731078078568,0.8294,2918.9,2917.4,3.0]
[1731078081058,0.8294,2918.9,2917.5,0.06852177]
[1731078081258,0.8294,2918.9,2917.6,0.30685218]
[1731078081440,0.8294,2918.9,2917.7,0.06852171]
[1731078081644,0.8294,2918.9,2917.6,0.30685218]
[1731078081829,0.8294,2918.9,2917.7,0.0685182]
[1731078082026,0.8294,2918.9,2917.6,0.30685218]
[1731078082230,0.8294,2918.9,2917.7,0.0685182]
[1731078082715,0.8294,2918.9,2917.6,0.29537038]
[1731078083131,0.8294,2918.9,2917.7,0.0235701]
[1731078083311,0.8294,2918.9,2917.6,0.29537038]
[1731078083766,1.379,2918.6,2917.0,0.505]
[1731078083974,0.55,2918.2,2917.0,0.505]
[1731078084265,0.55,2917.9,2917.0,0.505]
[1731078084467,0.829,2917.7,2917.0,0.505]
[1731078084981,0.829,2917.5,2917.0,0.505]
[1731078085875,0.829,2917.5,2917.1,0.02367368]
[1731078086024,0.829,2917.5,2917.1,0.02364866]
[1731078087055,0.7695,2918.4,2917.3,0.55]
[1731078087325,0.7695,2918.4,2917.4,0.02358473]
[1731078087557,0.7695,2918.4,2917.3,0.55]
[1731078087967,0.7695,2918.4,2917.2,0.7968]
[1731078088174,0.7695,2918.4,2917.4,3.0]
[1731078088329,0.7695,2918.4,2917.5,0.71081386]
[1731078088526,0.7695,2918.4,2917.5,0.68724582]
[1731078088971,0.7695,2918.4,2917.5,0.71082058]
[1731078089265,0.789,2919.3,2917.5,0.71082422]
[1731078089574,0.08565139,2919.2,2917.5,0.71082422]
[1731078089725,0.789,2919.3,2917.8,3.0]
[1731078090081,0.789,2919.3,2917.6,1.75627439]
[1731078090561,0.789,2919.3,2917.7,0.02355259]
[1731078090735,0.789,2919.3,2917.6,1.75627439]
[1731078091172,1.3126,2919.1,2917.6,0.43807439]
[1731078091371,0.55,2918.7,2916.9,0.7672]
[1731078091685,0.84827136,2918.6,2916.9,0.7672]
[1731078091991,0.84827136,2918.6,2917.1,0.0236118]
[1731078092156,0.84827131,2919.0,2917.3,4.34886545]
[1731078092481,0.63565319,2918.9,2917.4,0.51682655]
[1731078092686,0.751,2918.8,2917.2,0.8194]
[1731078092840,0.08566258,2918.7,2917.2,0.8194]
[1731078093366,0.83666259,2918.8,2917.3,0.02359069]
[1731078093546,0.751,2918.8,2917.4,0.02356743]
[1731078093742,0.751,2918.8,2917.2,0.8194]
[1731078094052,0.751,2918.8,2917.3,0.0235795]
[1731078094254,0.751,2918.8,2917.2,0.8194]
[1731078095409,0.751,2918.8,2917.3,0.02359153]
[1731078095573,0.751,2918.8,2917.2,1.38174368]
[1731078095775,0.751,2918.8,2917.2,4.38174368]
[1731078096079,0.751,2918.8,2917.3,0.02358169]
[1731078096283,0.751,2918.8,2917.4,0.44053254]
[1731078096498,0.751,2918.8,2917.5,0.02357902]
[1731078096927,0.751,2918.8,2917.6,3.43428749]
[1731078097221,0.751,2918.8,2917.7,0.8264]
[1731078097514,0.751,2918.8,2917.4,1.24033254]
[1731078097882,0.751,2918.8,2917.5,0.02359231]
[1731078098528,0.751,2918.8,2917.4,1.24033254]
[1731078098867,0.751,2918.8,2917.5,0.02359232]
[1731078099496,0.55,2918.5,2917.4,0.44053254]
[1731078099709,0.7546,2918.3,2917.5,0.02361766]
[1731078099909,0.7546,2918.3,2917.5,0.6901228]
[1731078100124,0.7546,2918.3,2917.6,0.02361749]
[1731078100530,0.7546,2918.3,2917.5,0.6901228]
[1731078100734,0.7546,2918.3,2917.6,0.02359564]
[1731078101597,0.7546,2918.3,2917.5,1.4936228]
[1731078101805,0.7546,2918.3,2917.6,0.02358028]
[1731078102007,0.7533,2918.6,2917.6,0.02358028]
[1731078102207,0.7533,2918.6,2917.7,0.2064135]
[1731078102648,0.7533,2918.6,2917.8,0.02357806]
[1731078103353,0.7946,2918.9,2917.8,0.57357806]
[1731078103650,0.765,2919.2,2918.4,3.0]
[1731078103865,0.765,2919.2,2918.5,0.72915172]
[1731078104010,0.1385877,2919.8,2918.7,4.05642071]
[1731078104366,0.1385877,2919.8,2918.8,3.0]
[1731078104367,0.9035877,2919.8,2918.8,3.0]
[1731078104511,0.9035877,2919.8,2918.8,3.02347435]
[1731078104712,0.9035877,2919.8,2918.9,0.70798951]
[1731078105107,0.9035877,2919.8,2918.5,0.70564207]
[1731078105313,0.796,2919.6,2918.2,0.7892]
[1731078105835,0.796,2919.6,2918.3,0.02352154]
[1731078106636,0.796,2919.6,2918.4,3.0]
[1731078106834,0.796,2919.6,2918.5,0.57350316]
[1731078107042,0.796,2919.6,2918.6,0.02349042]
[1731078107209,0.1385877,2919.8,2919.1,4.05642071]
[1731078107426,0.1385877,2919.8,2919.2,4.04408242]
[1731078107649,0.1385877,2919.8,2919.2,4.02064207]
[1731078107959,0.1385877,2919.8,2919.2,4.01064207]
[1731078108353,0.1385877,2919.8,2919.2,4.03409194]
[1731078108654,0.1385877,2919.8,2919.3,0.7576]
[1731078108856,0.1385877,2919.8,2919.5,0.55]
[1731078109015,0.1385877,2919.8,2919.6,3.0]
[1731078110127,0.1385877,2919.8,2919.7,0.02343878]
[1731078110332,0.08560123,2921.6,2919.7,0.02343878]
[1731078110333,0.8179,2920.7,2919.8,0.55]
[1731078110552,0.8179,2920.7,2920.0,3.0]
[1731078110849,0.8179,2920.7,2920.1,0.70564207]
[1731078111158,0.7568,2921.4,2920.1,0.70564207]
[1731078111480,4.05642071,2921.7,2919.7,0.8107]
[1731078111481,0.7568,2921.3,2919.9,0.54513228]
[1731078111766,0.7568,2921.3,2920.0,3.57338821]
[1731078112371,0.7568,2921.3,2920.2,0.55]
[1731078113026,0.7568,2921.3,2920.3,0.02337292]
[1731078113663,0.7568,2921.3,2920.8,3.0]
[1731078113875,0.7568,2921.3,2920.9,0.70564207]
[1731078114867,0.7568,2921.3,2920.5,0.55]
[1731078115082,0.7568,2921.3,2920.7,3.0]
[1731078116588,0.7568,2921.3,2920.5,0.55]
[1731078117766,0.7568,2921.3,2920.6,0.02335818]
[1731078118078,0.8185,2922.0,2920.8,3.8152]
[1731078118278,0.8185,2922.0,2921.0,3.55]
[1731078118605,0.8185,2922.0,2921.0,0.55]
[1731078118885,0.8185,2922.0,2921.2,3.0]
[1731078119388,0.8185,2922.0,2920.8,3.8152]
[1731078119597,0.8185,2922.0,2920.9,1.50041878]
[1731078119904,0.7685,2922.0,2920.9,0.83059082]
[1731078120087,0.7685,2922.0,2920.5,3.0]
[1731078120088,0.08556185,2921.9,2920.5,0.55127241]
[1731078120256,0.55,2922.3,2920.6,0.45764946]
[1731078120455,0.08556471,2922.2,2920.7,0.02335582]
[1731078120682,0.08556471,2922.2,2920.4,0.69234031]
[1731078120886,0.55,2922.1,2920.5,0.49824238]
[1731078121193,0.55,2921.9,2920.5,0.4748761]
[1731078121502,0.55,2921.7,2920.6,0.02339377]
[1731078121803,0.08558053,2921.6,2920.2,0.02339378]
[1731078121951,0.08558053,2921.6,2920.2,0.45768127]
[1731078122152,0.08558053,2921.9,2920.7,4.05642071]
[1731078122394,0.01,2922.8,2920.7,4.05642071]
[1731078122395,4.05642071,2922.9,2920.8,4.27996016]
[1731078122554,0.08554954,2922.6,2921.2,3.0]
[1731078122753,0.7606,2922.5,2921.3,35.02331438]
[1731078122994,0.7606,2922.5,2921.3,35.0]
[1731078124052,0.7606,2922.5,2921.4,3.02331434]
[1731078124283,0.7606,2922.5,2921.4,0.02331434]
[1731078124465,0.7606,2922.5,2921.6,3.0]
[1731078124673,0.7606,2922.5,2921.8,3.0]
[1731078125091,0.7606,2922.5,2922.0,3.0]
[1731078125531,0.7606,2922.5,2921.8,3.0]
[1731078127206,0.7606,2922.5,2921.9,0.02328776]
[1731078127417,0.7606,2922.5,2922.0,0.30232878]
[1731078128037,0.7606,2922.5,2921.7,0.69199322]
[1731078128491,0.7606,2922.5,2921.8,0.0232982]
[1731078128928,0.7606,2922.5,2921.7,1.47409322]
[1731078129240,0.7606,2922.5,2921.7,0.69199322]
[1731078129746,0.7606,2922.5,2921.4,0.30233143]
[1731078130358,0.7606,2922.5,2921.5,0.02331039]
[1731078130920,0.7606,2922.5,2921.5,4.0797311]
[1731078131121,0.7606,2922.5,2921.6,3.0]
[1731078131364,0.7606,2922.5,2921.3,35.69451568]
[1731078131663,0.7606,2922.5,2921.3,0.69451568]
[1731078131822,0.7606,2922.5,2921.6,3.0]
[1731078132022,0.7606,2922.5,2921.7,0.02329912]
[1731078132239,0.7606,2922.5,2921.7,0.84279912]
[1731078132422,0.7606,2922.5,2922.0,3.0]
[1731078132847,0.7606,2922.5,2922.1,0.02328069]
[1731078133049,0.7606,2922.5,2922.3,3.0]
[1731078133432,0.7606,2922.5,2921.5,4.05642071]
[1731078133433,0.7606,2922.5,2921.6,3.0]
[1731078133659,0.7606,2922.5,2921.9,4.05642071]
[1731078133879,0.7606,2922.5,2922.0,38.0]
[1731078134074,0.1385877,2922.7,2922.0,38.43428749]
[1731078134251,0.8076,2922.6,2922.2,3.0]
[1731078134440,0.8076,2922.6,2922.3,0.02328539]
[1731078134639,0.8076,2922.6,2922.3,35.0]
[1731078134970,0.8076,2922.6,2922.4,3.02325965]
[1731078135142,0.8076,2922.6,2922.4,3.0]
[1731078135473,0.1385877,2922.7,2922.5,3.45602212]
[1731078136026,0.1385877,2922.7,2922.6,0.02325626]
[1731078136438,0.1385877,2922.7,2922.5,3.45602212]
[1731078136665,0.0385877,2922.7,2922.5,3.45602212]
[1731078137235,0.0385877,2922.7,2922.6,0.02324972]
[1731078137433,0.0385877,2922.7,2922.6,0.6711769]
[1731078138028,0.0385877,2922.7,2922.6,0.02324972]
[1731078139228,0.0385877,2922.7,2922.2,0.56835834]
[1731078139465,0.0385877,2922.7,2922.0,3.505]
[1731078139626,0.0385877,2922.7,2922.1,0.02326272]
[1731078139830,0.0385877,2922.7,2922.1,0.02326415]
[1731078140065,0.0385877,2922.7,2922.2,0.40818803]
[1731078140409,0.0385877,2922.7,2922.3,0.02325077]
[1731078140585,0.0385877,2922.7,2922.2,0.40818803]
[1731078140932,0.0385877,2922.7,2922.3,0.02325516]
[1731078142565,0.0385877,2922.7,2922.3,0.02325109]
[1731078142945,0.0385877,2922.7,2922.2,0.40818803]
[1731078143768,0.0385877,2922.7,2922.3,0.69275614]
[1731078144037,0.0385877,2922.7,2922.4,0.02325696]
[1731078144779,0.0385877,2922.7,2922.4,3.02325696]
[1731078144980,0.0385877,2922.7,2922.5,0.77724338]
[1731078145157,0.0385877,2922.7,2922.6,0.02324651]
[1731078145686,0.8435877,2922.7,2922.5,0.77724338]
[1731078146060,0.8435877,2922.7,2922.3,0.69275614]
[1731078146240,0.8435877,2922.7,2922.4,0.02325441]
[1731078146444,0.8435877,2922.7,2922.0,4.49984165]
[1731078146756,0.8435877,2922.7,2922.0,1.06555416]
[1731078147238,0.0385877,2922.7,2922.1,0.45755921]
[1731078147440,0.0385877,2922.7,2922.3,4.83192071]
[1731078147641,0.0385877,2922.7,2922.4,0.50640797]
[1731078147960,0.0385877,2922.7,2922.4,3.50640797]
[1731078148175,0.0385877,2922.7,2922.5,0.55]
[1731078148473,0.0385877,2922.7,2922.4,3.91747956]
[1731078148648,0.0385877,2922.7,2922.4,3.48319207]
[1731078148985,0.0385877,2922.7,2922.5,0.83151128]
[1731078150083,0.8339877,2922.7,2922.6,0.02324102]
[1731078150392,0.0385877,2922.7,2922.6,0.02324102]
[1731078150584,0.0385877,2922.7,2922.1,0.02324166]
[1731078150890,0.0385877,2922.7,2922.2,0.47643292]
[1731078151182,0.0385877,2922.7,2922.4,3.0]
[1731078151387,0.0385877,2922.7,2922.5,0.02324261]
[1731078151895,0.7667,2924.2,2922.4,3.0]
[1731078152052,0.7667,2924.1,2922.7,4.60642071]
[1731078152251,0.01,2924.6,2922.7,4.60642071]
[1731078152252,0.08549902,2924.0,2922.8,3.0]
[1731078152489,0.08549902,2924.0,2922.5,0.76064207]
[1731078152490,0.8255,2924.0,2922.5,0.76064207]
[1731078152699,0.91100845,2923.9,2922.5,0.76064207]
[1731078152901,0.91100845,2923.9,2922.2,1.16321125]
[1731078153112,0.8255,2923.9,2922.5,3.8097]
[1731078153902,0.8255,2923.9,2922.5,3.0]
[1731078154062,0.8255,2923.9,2922.6,0.0232256]
[1731078154453,0.8255,2923.9,2922.5,3.0]
[1731078154766,0.8255,2923.9,2922.6,0.72885102]
[1731078155162,0.8255,2923.9,2922.6,0.70564207]
[1731078155871,0.8255,2923.9,2922.6,1.40285376]
[1731078156180,0.8255,2923.9,2922.6,0.70564207]
[1731078156574,0.8255,2923.9,2922.7,0.02322581]
[1731078156908,0.8255,2923.9,2922.6,1.26520142]
[1731078157067,0.8255,2923.9,2922.7,0.51702286]
[1731078157471,0.8255,2923.9,2922.9,3.7947]
[1731078158198,0.8255,2923.9,2922.9,3.0]
[1731078158589,0.8255,2923.9,2923.0,0.57320396]
[1731078158793,0.8255,2923.9,2923.0,0.55]
[1731078158999,0.8255,2923.9,2923.1,0.355]
[1731078159789,0.8255,2923.9,2923.2,0.02318914]
[1731078160120,0.8255,2923.9,2923.1,0.355]
[1731078160332,0.8255,2923.9,2923.0,0.56609117]
[1731078160333,0.8255,2923.9,2923.2,0.02321289]
[1731078160683,0.8255,2923.9,2923.0,0.66660287]
[1731078161036,0.8255,2923.9,2922.7,4.04170217]
[1731078161802,0.8255,2923.9,2922.7,1.04170217]
[1731078162716,0.08551052,2923.8,2922.8,4.80692071]
[1731078162887,0.8123,2924.2,2922.9,3.58486229]
[1731078163086,0.8123,2924.2,2923.3,3.0]
[1731078165803,0.8123,2924.2,2923.0,0.505]
[1731078166123,0.8123,2924.2,2923.1,0.6993724]
[1731078167525,0.8123,2924.2,2923.2,0.02320441]
[1731078167732,0.7834,2924.8,2923.8,3.0]
[1731078167906,0.7834,2924.8,2923.9,0.72878974]
[1731078168105,0.7834,2924.8,2924.1,4.05642071]
[1731078168298,0.7834,2924.8,2924.2,0.02313946]
[1731078168997,0.7834,2924.8,2924.2,3.0]
[1731078171018,0.7834,2924.8,2924.3,0.02311451]
[1731078171204,0.7834,2924.8,2924.5,4.05642071]
[1731078173721,0.7834,2924.8,2924.4,0.30231145]
[1731078174103,0.7834,2924.8,2924.2,3.0]
[1731078174328,0.7834,2924.8,2924.1,4.05642071]
[1731078175026,0.7834,2924.8,2923.9,0.70564207]
[1731078176363,0.7834,2924.8,2924.0,0.02315575]
[1731078176736,0.7834,2924.8,2923.9,0.70564207]
[1731078177149,0.7834,2924.8,2923.7,4.05642071]
[1731078177361,0.02,2925.2,2923.4,3.0]
[1731078177362,0.7906,2924.6,2923.4,3.0]
[1731078178136,0.09549125,2925.0,2923.4,3.0]
[1731078178137,0.87609125,2924.5,2923.4,3.0]
[1731078178677,0.87519141,2924.5,2923.4,4.17903698]
[1731078179029,0.7906,2924.5,2923.5,0.02407928]
[1731078179230,0.7906,2924.5,2923.7,4.05642071]
[1731078179553,0.7906,2924.5,2923.8,0.0240793]
[1731078179930,0.7906,2924.5,2923.8,3.02405177]
[1731078180427,0.7906,2924.5,2924.1,4.05642071]
[1731078180627,0.08547976,2925.5,2924.2,3.0]
[1731078180628,0.8769678,2925.5,2924.2,3.0]
[1731078180877,0.8769678,2925.5,2924.5,4.05642071]
[1731078181073,0.7915,2925.5,2924.9,4.05642071]
[1731078181673,0.7915,2925.5,2925.0,3.0]
[1731078182053,0.7915,2925.5,2925.1,0.02396822]
[1731078182385,0.7915,2925.5,2925.3,4.05642071]
[1731078182587,0.7915,2925.5,2925.4,0.42961092]
[1731078182793,0.7716,2925.6,2925.4,0.42961092]
[1731078183091,0.7716,2925.6,2925.4,0.42961081]
[1731078183248,0.01,2926.9,2925.4,0.42961081]
[1731078183249,0.7716,2925.9,2925.4,3.42961081]